bitfinex-derivatives/quotes_SOLF0:USTF0_20241025
["timestamp","ask_amount","ask_price","bid_price","bid_amount"]
[1729871915752,2.898,172.6,172.55,2.8985]
[1729871916356,2.8977,172.61,172.56,2.8984]
[1729871916543,22.30750354,172.64,172.53,2.4117]
[1729871916743,2.8983,172.58,172.53,5.3106]
[1729871916947,22.30750354,172.64,172.53,2.4117]
[1729871917361,22.30750354,172.64,172.54,2.8988]
[1729871917362,2.8982,172.59,172.54,2.8988]
[1729871919059,22.30750354,172.64,172.53,2.4117]
[1729871919252,2.898,172.6,172.53,2.4117]
[1729871919855,22.30750354,172.64,172.53,2.4117]
[1729871920054,22.30750354,172.64,172.54,2.8987]
[1729871920254,22.30750354,172.64,172.53,2.4117]
[1729871920657,2.898,172.59,172.55,2.8985]
[1729871921966,6.78,172.66,172.53,2.4117]
[1729871922159,22.30750354,172.7,172.56,22.30750354]
[1729871922360,2.8969,172.66,172.62,2.8974]
[1729871923456,29.08750354,172.72,172.59,6.78]
[1729871923652,2.8966,172.68,172.59,29.08750354]
[1729871924164,22.30750354,172.75,172.65,2.8969]
[1729871924562,2.8963,172.7,172.65,2.8969]
[1729871924769,22.30750354,172.75,172.65,2.8969]
[1729871924968,14.4667,172.88,172.62,2.5151]
[1729871924969,6.78,172.83,172.66,6.78]
[1729871925267,2.8959,172.72,172.66,6.78]
[1729871925563,22.30750354,172.72,172.62,2.5151]
[1729871925956,22.30750354,172.72,172.6,6.78]
[1729871926466,2.897,172.66,172.58,22.30750354]
[1729871926665,22.30750354,172.69,172.59,2.898]
[1729871926869,22.30750354,172.69,172.58,6.78]
[1729871927170,22.30750354,172.69,172.58,9.6782]
[1729871927558,22.30750354,172.69,172.58,6.78]
[1729871927758,22.30750354,172.69,172.59,2.898]
[1729871927971,2.8973,172.64,172.59,2.898]
[1729871928162,22.30750354,172.69,172.6,2.8977]
[1729871928360,22.30750354,172.69,172.57,2.5151]
[1729871928971,2.8968,172.67,172.57,2.5151]
[1729871929175,29.08750354,172.7,172.57,2.5151]
[1729871929567,29.08750354,172.7,172.58,22.30750354]
[1729871929769,6.78,172.7,172.58,22.30750354]
[1729871930072,22.30750354,172.73,172.57,24.82260354]
[1729871930376,22.30750354,172.7,172.57,9.2951]
[1729871930587,2.8968,172.67,172.57,31.60260354]
[1729871930872,29.08750354,172.72,172.57,31.60260354]
[1729871931174,22.30750354,172.72,172.62,2.8975]
[1729871931374,29.08750354,172.72,172.6,22.30750354]
[1729871931668,2.8964,172.69,172.63,2.8972]
[1729871931863,2.8964,172.69,172.62,6.78]
[1729871932073,29.08750354,172.78,172.63,22.30750354]
[1729871932274,2.8955,172.74,172.64,1.2061]
[1729871932468,22.30750354,172.78,172.66,22.30750354]
[1729871933083,2.8956,172.74,172.66,22.30750354]
[1729871933373,2.8956,172.74,172.7,2.8961]
[1729871934468,2.8955,172.74,172.7,2.8961]
[1729871934673,22.30750354,172.78,172.67,6.78]
[1729871934975,22.30750354,172.78,172.7,2.896]
[1729871935481,6.78,172.79,172.71,2.8959]
[1729871935774,6.78,172.79,172.67,6.78]
[1729871936074,22.30750354,172.81,172.73,2.8956]
[1729871936075,6.48,172.81,172.73,2.8956]
[1729871936267,2.8949,172.78,172.73,2.8956]
[1729871936874,6.48,172.82,172.72,2.8958]
[1729871937176,6.48,172.82,172.68,22.30750354]
[1729871937377,2.8953,172.76,172.71,2.8959]
[1729871937964,6.48,172.82,172.68,22.30750354]
[1729871938169,2.8952,172.76,172.68,22.30750354]
[1729871938571,2.8951,172.77,172.72,2.8957]
[1729871939068,28.78750354,172.82,172.68,22.30750354]
[1729871939272,2.8953,172.76,172.71,2.8959]
[1729871939476,2.8953,172.76,172.68,22.30750354]
[1729871939880,2.8954,172.75,172.71,2.896]
[1729871940074,6.48,172.82,172.68,22.30750354]
[1729871941882,2.8949,172.78,172.68,22.30750354]
[1729871942381,2.8947,172.79,172.76,2.895]
[1729871942582,2.8947,172.79,172.75,6.46]
[1729871942775,2.8947,172.79,172.75,9.3553]
[1729871942973,2.8947,172.79,172.75,6.46]
[1729871943179,22.30750354,172.83,172.69,22.30750354]
[1729871943377,22.30750354,172.83,172.67,62.56]
[1729871943378,2.896,172.72,172.67,71.9165]
[1729871943582,22.30750354,172.77,172.65,2.5209]
[1729871943772,22.30750354,172.77,172.65,8.9809]
[1729871944081,28.76750354,172.8,172.66,22.30750354]
[1729871944674,28.76750354,172.8,172.71,2.896]
[1729871944880,22.30750354,172.8,172.71,2.896]
[1729871945079,22.30750354,172.8,172.65,8.9809]
[1729871945080,6.46,172.81,172.69,22.30750354]
[1729871945284,6.46,172.81,172.74,2.8954]
[1729871945471,6.46,172.81,172.7,6.46]
[1729871946084,6.46,172.81,172.72,2.8958]
[1729871946585,2.8952,172.76,172.72,2.8958]
[1729871947177,2.8952,172.76,172.7,6.46]
[1729871947178,6.46,172.81,172.73,2.8955]
[1729871947777,6.46,172.81,172.7,6.46]
[1729871947978,28.76750354,172.85,172.75,2.8952]
[1729871948475,28.76750354,172.85,172.72,22.30750354]
[1729871948476,2.8945,172.8,172.76,2.8951]
[1729871948781,28.76750354,172.85,172.73,2.5227]
[1729871948980,28.76750354,172.85,172.74,6.46]
[1729871949184,2.8946,172.8,172.75,2.8953]
[1729871949378,2.8946,172.8,172.73,2.5227]
[1729871949379,22.30750354,172.79,172.73,2.5227]
[1729871949681,2.8959,172.72,172.69,6.46]
[1729871949886,22.30750354,172.77,172.66,6.46]
[1729871950272,2.8956,172.74,172.66,6.46]
[1729871950586,6.46,172.79,172.66,6.46]
[1729871950782,2.8956,172.74,172.69,2.8963]
[1729871950987,22.30750354,172.77,172.69,2.8963]
[1729871951190,22.30750354,172.77,172.66,6.46]
[1729871951485,2.8958,172.73,172.69,2.8963]
[1729871951685,22.30750354,172.74,172.65,2.5227]
[1729871952080,22.30750354,172.74,172.65,5.4196]
[1729871952282,22.30750354,172.74,172.65,2.5227]
[1729871952484,22.30750354,172.74,172.66,2.8967]
[1729871952485,2.8963,172.7,172.66,2.8967]
[1729871952783,22.30750354,172.74,172.65,2.5227]
[1729871953177,22.30750354,172.74,172.66,2.8968]
[1729871953378,22.30750354,172.74,172.65,2.5227]
[1729871953676,2.8964,172.69,172.65,5.4197]
[1729871953877,2.8964,172.69,172.65,2.5227]
[1729871954677,22.30750354,172.74,172.61,22.30750354]
[1729871954678,6.46,172.73,172.61,22.30750354]
[1729871954882,6.46,172.73,172.62,2.8974]
[1729871954883,22.30750354,172.71,172.62,2.8974]
[1729871955188,22.30750354,172.71,172.59,2.5619]
[1729871955384,6.46,172.73,172.59,2.5619]
[1729871955586,6.46,172.73,172.6,23.55070354]
[1729871955991,2.8965,172.68,172.62,2.8974]
[1729871956192,2.8965,172.68,172.6,23.55070354]
[1729871956482,2.8968,172.67,172.6,23.55070354]
[1729871956884,28.76750354,172.75,172.63,22.30750354]
[1729871957279,6.46,172.75,172.63,22.30750354]
[1729871957585,2.8962,172.7,172.66,2.8967]
[1729871958178,2.8964,172.69,172.65,2.8969]
[1729871958488,2.8964,172.69,172.64,6.46]
[1729871958789,2.8964,172.69,172.65,2.8969]
[1729871960090,22.30750354,172.75,172.65,2.8969]
[1729871960584,2.8963,172.7,172.66,2.8968]
[1729871961187,22.30750354,172.78,172.66,22.30750354]
[1729871961586,6.46,172.77,172.66,22.30750354]
[1729871961787,6.46,172.77,172.68,2.8964]
[1729871961985,6.46,172.77,172.66,22.30750354]
[1729871962390,2.8958,172.73,172.66,22.30750354]
[1729871963289,22.30750354,172.8,172.66,22.30750354]
[1729871963491,22.30750354,172.8,172.68,22.30750354]
[1729871963492,6.46,172.79,172.68,22.30750354]
[1729871963795,6.46,172.79,172.71,2.8958]
[1729871964104,2.8954,172.75,172.68,22.30750354]
[1729871964293,2.8954,172.75,172.71,2.8959]
[1729871965394,2.8954,172.75,172.68,22.30750354]
[1729871965597,2.8954,172.75,172.7,2.8961]
[1729871965792,6.46,172.79,172.68,22.30750354]
[1729871965996,6.46,172.79,172.67,5.4113]
[1729871966196,6.46,172.79,172.67,2.5147]
[1729871966592,6.46,172.79,172.7,2.8961]
[1729871966993,6.46,172.79,172.68,22.30750354]
[1729871967494,2.8957,172.73,172.68,22.30750354]
[1729871968397,2.8957,172.73,172.69,2.8963]
[1729871969193,6.46,172.79,172.68,22.30750354]
[1729871969388,2.8957,172.73,172.69,2.8963]
[1729871970194,2.8956,172.74,172.71,2.8959]
[1729871970501,6.46,172.79,172.68,22.30750354]
[1729871970793,6.46,172.79,172.69,2.8963]
[1729871971793,6.46,172.79,172.68,22.30750354]
[1729871972191,6.46,172.79,172.71,2.896]
[1729871972391,6.46,172.79,172.68,23.59780354]
[1729871972392,6.46,172.79,172.7,13.9099805]
[1729871972798,13.9099805,172.8,172.7,16.8060805]
[1729871972799,2.8956,172.74,172.7,16.8060805]
[1729871973798,2.8958,172.73,172.7,13.9099805]
[1729871974002,2.8958,172.73,172.67,2.5147]
[1729871974003,6.28,172.8,172.67,16.4246805]
[1729871974195,13.9099805,172.76,172.67,2.5147]
[1729871975092,13.9099805,172.74,172.65,6.28]
[1729871976403,13.9099805,172.74,172.63,13.9099805]
[1729871976905,13.9099805,172.74,172.63,16.8071805]
[1729871976906,2.8967,172.67,172.63,16.8071805]
[1729871977706,13.9099805,172.71,172.61,20.1899805]
[1729871978010,13.9099805,172.74,172.63,13.9099805]
[1729871978204,2.8965,172.69,172.64,2.8971]
[1729871978510,2.8965,172.69,172.63,13.9099805]
[1729871978699,2.8965,172.69,172.65,2.8969]
[1729871979006,2.896,172.71,172.63,13.9099805]
[1729871979199,6.28,172.75,172.67,2.8966]
[1729871979708,13.9099805,172.78,172.67,13.9099805]
[1729871979901,6.28,172.77,172.68,2.8964]
[1729871980601,6.28,172.77,172.67,16.8065805]
[1729871981608,2.896,172.72,172.67,16.8065805]
[1729871982806,2.896,172.71,172.67,16.8065805]
[1729871983003,2.896,172.71,172.67,2.8966]
[1729871983907,13.9099805,172.74,172.64,2.8972]
[1729871984210,6.28,172.77,172.61,20.1899805]
[1729871984211,13.9099805,172.71,172.61,20.1899805]
[1729871984611,2.8965,172.68,172.61,20.1899805]
[1729871985505,2.8967,172.67,172.63,2.8972]
[1729871986210,13.9099805,172.67,172.6,2.5595]
[1729871986403,13.9099805,172.65,172.55,20.1899805]
[1729871986625,2.8978,172.61,172.57,2.8983]
[1729871987612,2.8975,172.62,172.58,2.8981]
[1729871988206,2.8979,172.6,172.55,16.8085805]
[1729871988401,2.8979,172.6,172.54,3.75]
[1729871988402,13.9099805,172.6,172.54,2.49]
[1729871988709,5.94,172.62,172.49,1.2258]
[1729871988710,13.9099805,172.58,172.49,1.2258]
[1729871988912,13.9099805,172.58,172.49,3.7276]
[1729871989099,2.8987,172.55,172.51,2.8993]
[1729871989303,13.9099805,172.58,172.51,2.8993]
[1729871989505,13.9099805,172.58,172.49,3.7276]
[1729871989705,2.8987,172.55,172.5,2.8994]
[1729871990011,13.9099805,172.58,172.49,3.7276]
[1729871990315,22.26895123,172.56,172.42,22.26895123]
[1729871990503,5.94,172.55,172.44,5.94]
[1729871990704,2.899,172.53,172.48,2.8998]
[1729871990906,5.94,172.55,172.43,1.2204]
[1729871991112,5.94,172.55,172.44,5.94]
[1729871991308,2.8993,172.52,172.47,2.8999]
[1729871991510,22.26895123,172.53,172.44,5.94]
[1729871991708,22.26895123,172.53,172.43,1.2204]
[1729871991905,2.8996,172.5,172.44,2.9004]
[1729871992303,22.26895123,172.53,172.42,8.4417]
[1729871992506,2.8998,172.49,172.43,2.9005]
[1729871992712,22.26895123,172.53,172.42,8.4417]
[1729871992912,2.8997,172.49,172.43,2.9007]
[1729871993903,2.8997,172.49,172.42,8.4417]
[1729871994120,22.26895123,172.58,172.42,8.4417]
[1729871994121,2.8995,172.51,172.46,2.9]
[1729871994420,5.94,172.53,172.44,22.26895123]
[1729871994613,8.8391,172.53,172.47,2.8999]
[1729871994914,5.94,172.53,172.42,30.71065123]
[1729871995515,2.8997,172.5,172.44,2.9005]
[1729871995719,5.94,172.53,172.42,30.71065123]
[1729871996618,337.0,172.59,172.42,30.71065123]
[1729871996816,2.8992,172.52,172.47,2.9]
[1729871997514,2.8993,172.51,172.46,2.9001]
[1729871997812,28.20895123,172.55,172.42,30.71065123]
[1729871998018,2.8997,172.5,172.45,2.9003]
[1729871998218,28.20895123,172.55,172.42,8.4417]
[1729871998523,22.26895123,172.53,172.42,8.4417]
[1729871998713,2.8996,172.5,172.45,2.9004]
[1729871999019,22.26895123,172.53,172.42,2.5017]
[1729871999514,2.8993,172.52,172.45,2.9003]
[1729871999716,5.94,172.55,172.42,24.77065123]
[1729872000318,30.95525123,172.75,172.42,24.77065123]
[1729872000319,2.8993,172.52,172.45,2.9002]
[1729872000619,337.0,172.65,172.42,2.5017]
[1729872000814,5.94,172.59,172.42,2.5017]
[1729872001215,5.94,172.59,172.46,2.9001]
[1729872001420,1.0,172.58,172.46,2.9001]
[1729872002519,2.8993,172.52,172.46,2.9001]
[1729872002714,2.8993,172.52,172.47,2.9]
[1729872003621,1.0,172.58,172.42,2.5017]
[1729872003816,2.899,172.54,172.5,2.8995]
[1729872004211,2.899,172.54,172.45,1.223]
[1729872004517,6.94,172.58,172.45,1.223]
[1729872005020,6.94,172.58,172.44,5.94]
[1729872005021,1.0,172.58,172.44,5.94]
[1729872006219,1.0,172.58,172.42,2.5017]
[1729872006420,1.0,172.58,172.46,2.9001]
[1729872006924,1.0,172.58,172.47,2.9]
[1729872006925,2.8995,172.51,172.47,2.9]
[1729872007121,5.94,172.53,172.42,2.5017]
[1729872007426,8.8391,172.53,172.49,2.8997]
[1729872008123,8.8391,172.53,172.42,2.5017]
[1729872008124,5.94,172.53,172.42,2.5017]
[1729872008626,5.94,172.52,172.42,2.5017]
[1729872008827,2.8997,172.49,172.45,2.9002]
[1729872009026,2.8997,172.49,172.42,2.5017]
[1729872009225,5.94,172.52,172.42,2.5017]
[1729872009426,2.8998,172.49,172.44,2.9004]
[1729872010026,2.9001,172.47,172.42,2.9008]
[1729872010330,5.94,172.52,172.37,5.94]
[1729872010527,5.94,172.51,172.37,5.94]
[1729872010928,1.0,172.51,172.37,5.94]
[1729872011123,1.0,172.51,172.48,2.8998]
[1729872011328,5.94,172.56,172.42,5.94]
[1729872011524,5.94,172.61,172.43,8.459]
[1729872011725,2.8984,172.57,172.48,2.8998]
[1729872011930,22.28646383,172.59,172.48,5.94]
[1729872012127,22.28646383,172.56,172.48,5.94]
[1729872012330,2.899,172.54,172.49,2.8996]
[1729872012533,5.94,172.56,172.48,5.94]
[1729872012726,5.94,172.56,172.48,19.85727812]
[1729872012926,2.8982,172.58,172.54,2.8987]
[1729872013126,13.91727812,172.61,172.5,13.91727812]
[1729872013332,19.85727812,172.61,172.51,2.4659]
[1729872013533,337.0,172.68,172.53,13.91727812]
[1729872013836,13.91727812,172.65,172.53,19.85727812]
[1729872014135,13.91727812,172.61,172.51,2.4659]
[1729872014436,5.94,172.61,172.51,2.4659]
[1729872014635,5.94,172.61,172.52,22.28324234]
[1729872014838,5.94,172.61,172.51,2.4659]
[1729872015040,5.94,172.61,172.45,5.94]
[1729872015233,2.8989,172.54,172.45,8.4743]
[1729872015436,22.28324234,172.56,172.45,8.4743]
[1729872015626,2.899,172.53,172.48,2.8998]
[1729872016328,22.28324234,172.56,172.45,8.4743]
[1729872016329,2.8992,172.52,172.47,2.9]
[1729872016935,2.8992,172.52,172.48,2.8998]
[1729872017139,2.8991,172.53,172.48,2.8998]
[1729872017339,22.28324234,172.56,172.48,2.8998]
[1729872017750,28.18324234,172.56,172.48,2.8998]
[1729872018244,28.18324234,172.56,172.45,8.4743]
[1729872018449,22.28324234,172.54,172.45,2.5343]
[1729872018655,2.8998,172.49,172.45,2.5343]
[1729872018842,28.18324234,172.51,172.41,1.3005]
[1729872020143,2.8999,172.48,172.43,2.9006]
[1729872020348,28.18324234,172.51,172.41,1.3005]
[1729872020548,84.90324234,172.57,172.42,22.28324234]
[1729872020851,2.8992,172.52,172.47,2.8999]
[1729872021148,84.90324234,172.57,172.44,2.9005]
[1729872021149,2.8998,172.49,172.44,2.9005]
[1729872021339,5.9,172.56,172.43,1.1795]
[1729872021739,5.9,172.56,172.47,2.9]
[1729872022347,2.9,172.48,172.43,4.0801]
[1729872022754,28.18324234,172.51,172.43,4.0801]
[1729872023054,28.18324234,172.51,172.25,39.71324234]
[1729872023055,22.28324234,172.48,172.34,22.28324234]
[1729872023240,22.28324234,172.48,172.35,5.9]
[1729872023446,2.9006,172.44,172.4,2.9011]
[1729872023951,2.9005,172.45,172.4,2.9011]
[1729872024156,5.9,172.46,172.34,24.76214234]
[1729872024359,28.18324234,172.46,172.34,2.4789]
[1729872024660,2.901,172.42,172.38,2.9015]
[1729872025162,2.901,172.42,172.34,2.4789]
[1729872025357,337.0,172.54,172.37,22.28324234]
[1729872025555,337.0,172.54,172.34,2.4789]
[1729872025556,22.28324234,172.49,172.36,5.9]
[1729872025750,5.9,172.48,172.39,2.9013]
[1729872025957,22.28324234,172.46,172.34,2.4789]
[1729872026160,5.9,172.48,172.32,1.2134]
[1729872026161,22.28324234,172.43,172.32,1.2134]
[1729872026356,2.9015,172.39,172.34,2.9022]
[1729872026656,5.9,172.42,172.31,22.28324234]
[1729872026859,8.801,172.42,172.36,2.9018]
[1729872027063,5.9,172.42,172.31,22.28324234]
[1729872027463,2.9013,172.4,172.31,22.28324234]
[1729872027754,5.9,172.42,172.31,22.28324234]
[1729872027961,2.9015,172.39,172.34,2.9022]
[1729872028353,5.9,172.42,172.28,22.28324234]
[1729872028558,5.9,172.42,172.32,2.9025]
[1729872028859,5.9,172.42,172.28,23.47734234]
[1729872029257,5.9,172.42,172.27,22.28324234]
[1729872029571,5.9,172.42,172.28,2.4557]
[1729872029757,2.9022,172.35,172.28,2.4557]
[1729872030060,5.9,172.37,172.28,2.4557]
[1729872030266,8.8018,172.37,172.32,2.9025]
[1729872030456,1.0,172.41,172.32,22.28324234]
[1729872030652,337.0,172.44,172.35,22.28324234]
[1729872030855,68.56,172.45,172.38,2.9014]
[1729872031459,2.9009,172.42,172.38,2.9014]
[1729872031658,68.56,172.45,172.35,22.28324234]
[1729872032561,68.56,172.45,172.32,22.28324234]
[1729872033457,5.92,172.47,172.38,22.28324234]
[1729872034358,2.9003,172.46,172.41,2.901]
[1729872034562,5.92,172.47,172.41,2.901]
[1729872034762,5.92,172.47,172.38,22.28324234]
[1729872034965,2.9005,172.45,172.4,2.9012]
[1729872036270,2.9009,172.42,172.38,25.18464234]
[1729872036470,5.92,172.47,172.38,22.28324234]
[1729872036668,2.9003,172.46,172.41,2.9009]
[1729872036876,5.92,172.47,172.41,2.9009]
[1729872037167,5.92,172.47,172.37,1.247]
[1729872037374,5.92,172.47,172.36,2.5601]
[1729872037875,5.92,172.47,172.38,22.28324234]
[1729872038668,62.66,172.54,172.39,5.92]
[1729872038868,5.92,172.53,172.41,22.28324234]
[1729872039061,6.92,172.53,172.41,22.28324234]
[1729872039266,1.0,172.53,172.43,22.28324234]
[1729872039571,1.0,172.53,172.44,1.2858]
[1729872039971,1.0,172.53,172.44,4.1862]
[1729872040568,2.8999,172.48,172.44,4.1862]
[1729872040768,1.0,172.53,172.44,4.1862]
[1729872041070,6.92,172.53,172.44,1.2858]
[1729872041269,6.92,172.53,172.39,22.28324234]
[1729872041475,22.28324234,172.51,172.39,22.28324234]
[1729872042170,2.9001,172.47,172.42,2.9008]
[1729872042570,22.28324234,172.51,172.39,22.28324234]
[1729872042766,2.9,172.48,172.41,2.901]
[1729872042966,6.92,172.53,172.4,22.28324234]
[1729872043177,22.28324234,172.51,172.38,1.2858]
[1729872043874,2.9007,172.44,172.39,2.9014]
[1729872044073,28.20324234,172.48,172.38,1.2858]
[1729872044373,2.9009,172.42,172.38,1.2858]
[1729872044976,2.9006,172.44,172.4,2.9012]
[1729872045278,28.20324234,172.48,172.38,1.2858]
[1729872045478,2.9005,172.45,172.38,4.1872]
[1729872045671,5.03361185,172.44,172.38,1.2858]
[1729872045976,28.20324234,172.48,172.38,1.2858]
[1729872046281,22.28324234,172.46,172.36,1.2752]
[1729872046466,5.03366596,172.45,172.36,1.2752]
[1729872046671,22.28324234,172.43,172.32,2.5593]
[1729872046877,5.92,172.42,172.32,2.5593]
[1729872047381,2.9015,172.39,172.35,2.902]
[1729872047565,5.92,172.42,172.32,2.5593]
[1729872047769,22.28324234,172.4,172.25,23.55394234]
[1729872047967,22.28324234,172.36,172.26,1.3003]
[1729872048183,22.28324234,172.34,172.25,1.2707]
[1729872048474,5.82,172.35,171.88,8.03840936]
[1729872048475,22.28324234,172.26,172.16,1.2552]
[1729872048666,22.28324234,172.26,172.12,2.85496849]
[1729872048667,354.41,172.35,172.12,2.85496849]
[1729872048868,22.28324234,172.28,172.14,22.28324234]
[1729872049068,7.2,172.27,172.14,22.28324234]
[1729872049272,10.1035,172.27,172.19,2.9047]
[1729872049466,7.2,172.27,172.14,22.28324234]
[1729872049772,7.2,172.27,172.16,22.28324234]
[1729872050677,7.2,172.27,172.2,2.9046]
[1729872051579,7.2,172.27,172.19,2.9047]
[1729872051580,2.9036,172.26,172.19,2.9047]
[1729872052376,7.2,172.27,172.22,2.9042]
[1729872052565,7.2,172.27,172.16,22.28324234]
[1729872052765,7.2,172.3,172.16,22.28324234]
[1729872052968,2.9031,172.29,172.23,2.9041]
[1729872053172,29.48324234,172.31,172.16,22.28324234]
[1729872053378,7.2,172.31,172.16,22.28324234]
[1729872053576,22.28324234,172.33,172.19,22.28324234]
[1729872053577,29.48324234,172.33,172.19,22.28324234]
[1729872053879,29.48324234,172.33,172.2,1.2016]
[1729872053880,7.2,172.33,172.2,1.2016]
[1729872054071,2.9025,172.32,172.26,2.9035]
[1729872054273,7.2,172.33,172.21,8.3823]
[1729872054579,7.2,172.33,172.22,1.2988]
[1729872054779,2.9027,172.31,172.25,2.9036]
[1729872055167,2.903,172.3,172.24,2.9039]
[1729872055372,29.48324234,172.33,172.22,1.2988]
[1729872055675,22.28324234,172.3,172.21,1.1823]
[1729872056073,22.28324234,172.3,172.2,1.2016]
[1729872056379,22.28324234,172.27,172.17,1.2194]
[1729872056574,7.2,172.26,172.17,1.2194]
[1729872057081,7.2,172.26,172.21,2.9043]
[1729872057771,7.2,172.26,172.18,1.2374]
[1729872057973,7.2,172.26,172.19,2.9047]
[1729872058279,7.2,172.26,172.13,7.2]
[1729872058280,22.28324234,172.24,172.11,22.28324234]
[1729872058482,2.9045,172.21,172.15,2.9053]
[1729872058783,22.28324234,172.22,172.12,1.2837]
[1729872058982,22.28324234,172.22,172.1,1.301]
[1729872059172,2.9049,172.18,172.13,2.9056]
[1729872059567,29.48324234,172.19,172.1,1.301]
[1729872059779,2.9052,172.17,172.12,2.9059]
[1729872059980,29.48324234,172.19,172.12,2.9059]
[1729872060181,2.9049,172.18,172.12,2.9059]
[1729872060477,29.48324234,172.19,172.1,1.301]
[1729872060678,10.1041,172.23,172.11,22.28324234]
[1729872060876,2.9041,172.23,172.11,22.28324234]
[1729872061075,7.2,172.24,172.12,9.7683]
[1729872061384,22.28324234,172.3,172.17,22.28324234]
[1729872061581,7.2,172.3,172.19,22.28324234]
[1729872061769,7.2,172.3,172.2,2.5683]
[1729872061977,7.2,172.35,172.22,22.28324234]
[1729872062179,4.61188122,172.34,172.3,2.9028]
[1729872062380,7.2,172.35,172.22,22.28324234]
[1729872062679,7.2,172.38,172.26,22.28324234]
[1729872062880,7.2,172.41,172.27,1.2489]
[1729872063078,4.6124854,172.4,172.28,23.58564234]
[1729872063275,7.2,172.41,172.34,2.9021]
[1729872063469,4.61293952,172.4,172.29,1.2659]
[1729872063675,2.9012,172.4,172.29,1.2659]
[1729872064383,2.9008,172.43,172.29,1.2659]
[1729872064684,22.28324234,172.44,172.29,1.2659]
[1729872064685,4.61368036,172.42,172.29,1.2659]
[1729872064872,2.901,172.42,172.36,2.9018]
[1729872065177,22.28324234,172.44,172.32,7.2]
[1729872065481,2.9012,172.4,172.35,2.902]
[1729872065679,62.72,172.45,172.32,7.2]
[1729872065680,22.28324234,172.42,172.32,7.2]
[1729872065879,2.9015,172.39,172.33,2.9022]
[1729872066074,4.61126912,172.41,172.29,1.2659]
[1729872066286,4.61126912,172.41,172.29,8.4659]
[1729872066474,2.9015,172.38,172.32,2.9025]
[1729872066874,4.61126912,172.41,172.35,2.902]
[1729872067071,4.61126912,172.41,172.31,22.28324234]
[1729872067477,4.61126912,172.41,172.34,22.28324234]
[1729872067687,2.9002,172.46,172.35,8.5049]
[1729872067884,7.2,172.48,172.37,22.28324234]
[1729872068082,22.28324234,172.5,172.38,1.2353]
[1729872068279,2.9,172.47,172.38,1.2353]
[1729872069177,2.9001,172.47,172.39,2.9013]
[1729872069382,22.28324234,172.5,172.38,1.2353]
[1729872069784,22.28324234,172.5,172.42,2.9007]
[1729872069984,7.2,172.52,172.38,1.2353]
[1729872070185,2.9001,172.47,172.42,2.9008]
[1729872070387,22.28324234,172.49,172.38,1.2353]
[1729872070888,22.28324234,172.49,172.39,2.9014]
[1729872071485,2.9002,172.46,172.39,2.9014]
[1729872071685,2.9002,172.46,172.38,1.2353]
[1729872071987,2.8997,172.49,172.38,1.2353]
[1729872072383,22.28324234,172.52,172.44,2.9004]
[1729872072583,2.8996,172.5,172.44,2.9004]
[1729872072783,22.28324234,172.52,172.44,2.9004]
[1729872072984,22.28324234,172.52,172.39,1.1836]
[1729872073192,22.28324234,172.52,172.4,6.86]
[1729872073495,2.9,172.48,172.43,2.9007]
[1729872073680,22.28324234,172.52,172.39,1.1836]
[1729872073885,69.9,172.54,172.39,1.1836]
[1729872073886,22.28324234,172.49,172.39,1.1836]
[1729872074692,2.9002,172.47,172.42,2.9008]
[1729872074892,2.9002,172.47,172.39,1.1836]
[1729872074893,22.28324234,172.46,172.39,1.1836]
[1729872075093,22.28324234,172.43,172.35,1.3049]
[1729872075394,2.9013,172.4,172.35,1.3049]